[Event "3rd Sharjah Challengers 2023"]
[Site "Sharjah"]
[Date "2023.05.17"]
[Round "1.1"]
[White "Al Hosani, Omran"]
[Black "Burmakin, Vladimir"]
[Result "1/2-1/2"]
[ECO "D35"]
[WhiteElo "2270"]
[BlackElo "2496"]
[Annotator "TA"]
[PlyCount "68"]
[EventDate "2023.05.16"]
[EventType "swiss"]
[EventCountry "UAE"]
[SourceTitle "playchess.com"]
[Source "ChessBase"]
[SourceQuality "1"]
[TimeControl "5400+30"]

{[%evp 17,68,18,18,16,10,7,6,5,13,6,16,11,9,0,5,9,16,2,7,-6,0,-22,29,30,35,34,32,1,0,0,33,28,42,27,42,18,16,0,0,-17,-17,-19,-19,-18,-5,-21,63,63,72,62,99,96,95]} 1. d4 {[%emt 1:31:00]} d5 {[%emt 1:31:00]} 2. c4 {[%emt 0:00:30]} e6 {[%emt 0:00:30]} 3. Nc3 {[%emt 0:00:30]} Nf6 {[%emt 0:00:30]} 4. Bg5 {[%emt 0:00:30]} Be7 {[%emt 0:00:30]} 5. cxd5 {[%emt 0:00:30]} exd5 {[%emt 0:00:30]} 6. e3 {[%emt 0:00:30]} c6 {[%emt 0:00:30]} 7. Bd3 {[%emt 0:00:30]} Bg4 {[%emt 0:00:30][%cal Bc8g4,Bg4h5,Bh5g6][%mdl 32]} 8. Qc2 {[%emt 0:00:30]} Bh5 {[%emt 0:00:30]} 9. Nge2 {[%emt 0:00:30]} Bg6 {[%emt 0:00:30]} 10. Ng3 {[%emt 0:00:30] D35: Queen's Gambit Declined: Exchange Variation.} Na6 {[%emt 0:00:30][%cal Bb8a6,Ba6c7,Bc7e6][%mdl 32]} 11. a3 {[%emt 0:00:30] Against Nb4} Nc7 {[%emt 0:00:30]} 12. Nf5 {[%emt 0:00:30] The position is equal.} Ne6 {[%emt 0:00:30] Hoping for ...Bxf5.} 13. Bh4 {[%emt 0:00:30]} Bxf5 {[%emt 0:00:30]} 14. Bxf5 {[%emt 0:00:30]} g6 {[%emt 0:00:30]} 15. Bd3 {[%emt 0:00:30]} Nh5 {[%emt 0:00:30]} 16. Bxe7 {[%emt 0:00:30]} Qxe7 {[%emt 0:00:30]} 17. O-O {[%emt 0:00:30]} O-O {[%emt 0:00:30] [#]} 18. b4 $146 {[%emt 0:00:30]} ({Predecessor:} 18. g3 f5 19. Ne2 Rae8 20. Kg2 Qg5 21. h4 Qe7 22. Rh1 Qd7 23. Qd1 Re7 24. b4 {½-½ Cruzado Duenas,C (2569)-Vlasveld,W (2501) olm20 final email 2016 [3]}) 18... a6 {[%emt 0:00:30]} 19. Na4 {[%emt 0:00:30]} Nf6 {[%emt 0:00:30]} (19... f5 $142) 20. Nc5 $11 {[%emt 0:00:30]} Ne8 {[%emt 0:00:30]} 21. a4 {[%emt 0:00:30]} Nd6 {[%emt 0:00:30]} 22. Qb3 {[%emt 0:00:30]} Nc7 {[%emt 0:00:30] And now ...b6 would win.} 23. Qc2 {[%emt 0:00:30]} Rfe8 {[%emt 0:00:30]} 24. Rfe1 {[%emt 0:00:30]} Rad8 {[%emt 0:00:30]} 25. Rad1 {[%emt 0:00:30]} Qf6 {[%emt 0:00:30]} 26. Bf1 {[%emt 0:00:30]} Re7 {[%emt 0:00:30]} 27. f3 {[%emt 0:00:30]} Ne6 {[%emt 0:00:30]} 28. Nxe6 {[%emt 0:00:30]} Qxe6 {[%emt 0:00:30]} 29. Bd3 {[%emt 0:00:30]} f5 {[%emt 0:00:30]} 30. Qc5 {[%emt 0:00:30]} Rde8 {[%emt 0:00:30]} 31. Re2 {[%emt 0:00:30]} Nc4 {[%emt 0:00:30]} (31... Qd7 $11) 32. Bxc4 $14 {[%emt 0:00:30]} dxc4 {[%emt 0:00:30] [#]} 33. a5 $1 {[%emt 0:00:30] White is more active.} Qd5 {[%emt 0:00:30] [#]} 34. Kf2 {[%emt 0:00:30]} Kg7 {[%emt 0:00:30] Weighted Error Value: White=0.07 (flawless) /Black=0.14 (very precise)} 1/2-1/2

[Event "3rd Sharjah Challengers 2023"]
[Site "Sharjah"]
[Date "2023.05.17"]
[Round "1.2"]
[White "Fawzy, Adham"]
[Black "Koniahli, Malek."]
[Result "1/2-1/2"]
[ECO "C80"]
[WhiteElo "2495"]
[BlackElo "2248"]
[Annotator "TA"]
[PlyCount "44"]
[EventDate "2023.05.16"]
[EventType "swiss"]
[EventCountry "UAE"]
[SourceTitle "playchess.com"]
[Source "ChessBase"]
[SourceQuality "1"]
[TimeControl "5400+30"]

{[%evp 21,44,31,39,32,44,31,44,21,54,46,48,0,8,26,37,0,-22,-75,10,10,0,10,241,79,204]} 1. e4 e5 2. Nf3 Nc6 3. Bb5 {[%cal Bf1b5,Bb5a4,Ba4b3][%mdl 32]} a6 4. Ba4 Nf6 5. O-O Nxe4 6. d4 b5 7. Bb3 d5 8. dxe5 Be6 9. Nbd2 Nc5 10. c3 Nxb3 11. Nxb3 Be7 12. Nfd4 {C80: Open Ruy Lopez: Sidelines and 9 Nbd2.} Qd7 13. Nxc6 Qxc6 14. f4 {White is slightly better.} Qd7 15. Be3 a5 {[%cal Ba6a5,Ba5a4,Ba4b3,Bb3a2][%mdl 32] [#] Black is weak on the dark squares} 16. Bc5 $146 {[#] Bxe7 is the strong threat.} ({Predecessor:} 16. a4 Bg4 17. Qd4 O-O 18. h3 Bf5 19. Qd1 bxa4 20. Nd4 a3 21. Nxf5 Qxf5 22. bxa3 {½-½ So,W (2540)-Torre,E (2519) Manila op 2008 (4)}) 16... a4 17. Bxe7 {[%cal Of4f5] f5! would be deadly.} axb3 18. Bb4 (18. Ba3 $14) 18... bxa2 $11 19. Qd4 (19. b3 $11 {keeps the balance.}) 19... g6 (19... Bf5 $17) 20. b3 Qc6 21. Rf2 Qd7 $2 {[#]} (21... Kd7 $11 {and Black is okay.}) 22. h3 $2 {[%emt 0:11:00]} ({Don't play} 22. Raxa2 Qc6 23. Rxa8+ (23. Qc5 Qxc5 24. Bxc5 Kd7 $11) 23... Qxa8) (22. Rfxa2 $18 {is more deadly.} Rxa2 23. Rxa2) 22... h5 {[%emt 0:11:00] Weighted Error Value: White=0.33/Black=0.54} (22... c5 $2 23. Qxc5 Qd8 24. Rfxa2 $18) (22... Qc6 $16 {was called for.}) 1/2-1/2

[Event "3rd Sharjah Challengers 2023"]
[Site "Sharjah"]
[Date "2023.05.17"]
[Round "1.3"]
[White "Stojanovic, Andjelija"]
[Black "Sivuk, Vitaly"]
[Result "1/2-1/2"]
[ECO "C80"]
[WhiteElo "2234"]
[BlackElo "2489"]
[Annotator "TA"]
[PlyCount "100"]
[EventDate "2023.05.16"]
[EventType "swiss"]
[EventCountry "UAE"]
[SourceTitle "playchess.com"]
[Source "ChessBase"]
[SourceQuality "1"]
[TimeControl "5400+30"]

{[%evp 21,100,39,26,35,52,52,45,34,51,52,57,0,0,1,0,0,0,-87,0,0,0,0,0,0,0,0,0,-29,0,0,0,0,0,0,0,0,8,-25,0,-222,-251,-941,-161,-190,-182,-163,-190,-184,-169,-213,-197,-247,-166,-179,-170,-195,-179,-187,-176,-210,-191,-182,-88,-85,-8,-8,-8,-8,8,8,8,0,0,0,0,0,0,0,0,-8,2006]} 1. e4 {[%emt 0:00:08]} e5 {[%emt 0:00:13]} 2. Nf3 {[%emt 0:00:16]} Nc6 {[%emt 0:00:05]} 3. Bb5 {[%emt 0:00:11][%cal Bf1b5,Bb5a4,Ba4b3][%mdl 32]} a6 {[%emt 0:00:03]} 4. Ba4 {[%emt 0:00:06]} Nf6 {[%emt 0:00:05]} 5. O-O {[%emt 0:00:09]} Nxe4 {[%emt 0:00:06]} 6. d4 {[%emt 0:01:18]} b5 {[%emt 0:00:06]} 7. Bb3 {[%emt 0:00:02]} d5 {[%emt 0:00:06]} 8. dxe5 {[%emt 0:00:23]} Be6 {[%emt 0:00:09]} 9. Nbd2 {[%emt 0:02:51]} Nc5 {[%emt 0:11:29]} 10. c3 {[%emt 0:00:35]} Nxb3 {[%emt 0:00:50]} 11. Nxb3 {[%emt 0:03:03]} Be7 {[%emt 0:00:20]} 12. Nfd4 {[%emt 0:02:45] C80: Open Ruy Lopez: Sidelines and 9 Nbd2.} Qd7 {[%emt 0:05:24]} 13. Nxc6 {[%emt 0:06:21]} Qxc6 {[%emt 0:00:08]} 14. f4 {[%emt 0:00:02] White is slightly better.} Qd7 {[%emt 0:00:30]} 15. Be3 {[%emt 0:00:19]} a5 {[%emt 0:19:42][%cal Ba6a5,Ba5a4,Ba4b3,Bb3a2][%mdl 32] [#] Black is weak on the dark squares} 16. Bc5 $146 {[%emt 0:10:50]} ({White should play} 16. Nc5 $14 Bxc5 17. Bxc5) ({Predecessor:} 16. a4 Bg4 17. Qd4 O-O 18. h3 Bf5 19. Qd1 bxa4 20. Nd4 a3 21. Nxf5 Qxf5 22. bxa3 {½-½ So,W (2540)-Torre,E (2519) Manila op 2008 (4)}) 16... a4 $11 {[%emt 0:02:17]} 17. Bxe7 {[%emt 0:00:21][%cal Of4f5] And now f5! would win.} axb3 {[%emt 0:00:04]} 18. Bb4 {[%emt 0:00:26]} bxa2 {[%emt 0:01:50]} 19. Qd4 {[%emt 0:03:01]} (19. b3 $11 {remains equal.}) 19... g6 {[%emt 0:17:03]} ({Better is} 19... Bf5 $17 20. b3 Rg8) 20. b3 {[%emt 0:04:14]} Qc6 {[%emt 0:13:28]} 21. Rf2 {[%emt 0:01:35]} Kd7 {[%emt 0:00:09]} 22. h3 {[%emt 0:05:04]} h5 {[%emt 0:01:13]} 23. Kh2 {[%emt 0:05:37]} Ra6 {[%emt 0:01:05]} 24. Rd2 {[%emt 0:07:57]} Rb8 {[%emt 0:01:39]} (24... Rha8 $5 {[%cal Rd7c8]}) 25. Raxa2 {[%emt 0:02:36]} Rxa2 {[%emt 0:00:27]} 26. Rxa2 {[%emt 0:00:02]} Ra8 {[%emt 0:00:07]} 27. Rd2 {[%emt 0:17:50] c4 is the strong threat.} Kc8 {[%emt 0:00:23]} 28. Kg3 {[%emt 0:00:35]} Kb7 {[%emt 0:00:18]} 29. Qc5 {[%emt 0:02:35]} Ra1 {[%emt 0:07:06]} 30. Qf8 $2 {[%emt 0:05:15]} (30. Qd4 $11) 30... d4 $1 $19 {[%emt 0:03:05][%mdl 64] aiming for ...Qe4. Discovered Attack} 31. cxd4 $2 {[%emt 0:09:05]} (31. Qc5 Qxc5 {[%mdl 64] Remove Defender} 32. Bxc5) 31... Rb1 $2 {[%emt 0:00:06]} (31... Bxb3 32. Qc5 $15) (31... Qe4 {( -> ...Qe3+)} 32. Qh6 Rh1) 32. Qc5 {[%emt 0:03:37]} Rxb3+ {[%emt 0:00:23]} (32... Bxb3 33. Kh4 $15) 33. Kh4 {[%emt 0:04:17]} Qxc5 {[%emt 0:01:02]} 34. Bxc5 {[%emt 0:00:02][%mdl 4096] Endgame [#] KRB-KRB} Kc6 {[%emt 0:00:48]} 35. Rf2 {[%emt 0:01:06]} Kd5 {[%emt 0:00:48]} ({Worse is} 35... b4 36. g4 $15) 36. Kg5 {[%emt 0:00:42]} (36. Rf1 $142) 36... Rg3+ {[%emt 0:06:12]} 37. Kh4 {[%emt 0:00:30]} Rd3 {[%emt 0:00:50]} 38. Kg5 {[%emt 0:00:50]} Kc4 {[%emt 0:00:29]} 39. Rb2 {[%emt 0:01:15]} c6 {[%emt 0:00:58]} 40. Ra2 {[%emt 0:01:14]} b4 {[%emt 0:03:17] Hoping for ...Kc3.} 41. Ra4 {[%emt 0:00:05] [#]} Rb3 {[%emt 0:00:06]} (41... Rg3+ $1 $19 42. Kf6 Rxg2 43. Rxb4+ Kd5) 42. g4 $17 {[%emt 0:00:36]} Rxh3 {[%emt 0:01:29]} (42... hxg4 $17 43. hxg4 Rg3 44. Rxb4+ Kc3) 43. f5 {[%emt 0:00:50] The position is equal.} gxf5 $1 {[%emt 0:04:25]} 44. gxf5 {[%emt 0:00:31]} Bd5 {[%emt 0:01:34]} 45. Rxb4+ {[%emt 0:00:33]} Kd3 $1 {[%emt 0:00:01]} 46. Rb7 {[%emt 0:00:55][%cal Oe5e6] Threatens to win with e6!} h4 {[%emt 0:00:40]} 47. e6 {[%emt 0:00:48]} fxe6 {[%emt 0:00:19]} 48. f6 {[%emt 0:00:01] Black must now prevent f7.} Rf3 {[%emt 0:00:31]} 49. f7 {[%emt 0:01:04] Strongly threatening Ra7.} ({Of course not} 49. Kxh4 Rxf6 50. Kg4 Rf5 $15) 49... h3 {[%emt 0:00:16]} 50. f8=Q {[%emt 0:00:25]} (50. f8=B $2 {too greedy.} h2 51. Rh7 Rf5+ 52. Kg6 h1=Q $19) 50... Ke4 $2 {[%emt 0:00:33][%mdl 40960] What a bad dream for Black.   Weighted Error Value: White=0.33/Black=0.25 (precise) . An unexpected result.} (50... Rxf8 $11 51. Bxf8 h2) 1/2-1/2

[Event "3rd Sharjah Challengers 2023"]
[Site "Sharjah"]
[Date "2023.05.17"]
[Round "1.4"]
[White "Vorobiov, Evgeny E."]
[Black "Paramzina, Anastasya"]
[Result "0-1"]
[ECO "D38"]
[WhiteElo "2483"]
[BlackElo "2227"]
[Annotator "TA"]
[PlyCount "66"]
[EventDate "2023.05.16"]
[EventType "swiss"]
[EventCountry "UAE"]
[SourceTitle "playchess.com"]
[Source "ChessBase"]
[SourceQuality "1"]
[TimeControl "5400+30"]

{[%evp 13,66,19,27,14,17,13,18,0,0,-25,-7,-19,0,6,98,102,104,100,107,91,102,48,33,32,52,38,30,36,55,40,126,105,100,38,48,33,54,52,79,0,0,0,0,-42,-11,-79,-65,-76,-106,-366,-357,-422,-416,-368,-398]} 1. d4 {[%emt 0:00:03]} Nf6 {[%emt 0:00:24]} 2. c4 {[%emt 0:00:07]} e6 {[%emt 0:00:22]} 3. Nc3 {[%emt 0:00:06]} d5 {[%emt 0:00:29]} 4. Nf3 {[%emt 0:00:06]} Bb4 {[%emt 0:00:11]} 5. cxd5 {[%emt 0:00:06]} exd5 {[%emt 0:00:10]} 6. Bg5 {[%emt 0:00:06]} h6 {[%emt 0:00:25]} 7. Bh4 {[%emt 0:00:06]} c5 {[%emt 0:02:57]} 8. dxc5 {[%emt 0:01:07] D38: Queen's Gambit Declined: Ragozin Defence (4 Nf3 Bb4).} Nbd7 {[%emt 0:05:43][%cal Bb8d7,Bd7f6,Bf6e4][%mdl 32]} 9. e3 {[%emt 0:09:05]} Qa5 {[%emt 0:03:23]} 10. Bxf6 {[%emt 0:12:46] The position is equal.} Nxf6 {[%emt 0:02:06]} 11. Qb3 {[%emt 0:05:12] [#]} Ne4 $146 {[%emt 0:05:07]} ({Predecessor:} 11... Be6 12. Nd4 O-O 13. Bd3 Rac8 14. O-O Qxc5 15. Nce2 Qe7 16. Ng3 Bc5 17. Ndf5 Bxf5 18. Nxf5 {0-1 Hernandes,O (2056)-Martins,V (2308) Campinas Universities op 2011 (3.3)}) 12. Rc1 {[%emt 0:01:30]} Nxc5 {[%emt 0:04:50]} (12... Be6 $5 {[%cal Rd5d4]} 13. Nd4 O-O $11) 13. Qc2 {[%emt 0:02:17]} Qxa2 {[%emt 0:10:15]} (13... Na4 $11) 14. Bb5+ $16 {[%emt 0:14:41]} Bd7 {[%emt 0:00:55]} 15. O-O {[%emt 0:05:22]} Qa5 {[%emt 0:07:09]} (15... Bxc3 $2 16. Qxc3 (16. Bxd7+ Nxd7 17. Qxc3 O-O $11) 16... O-O 17. Qxc5 $18) 16. Ra1 $1 {[%emt 0:07:42]} Qd8 {[%emt 0:00:46]} 17. Rfd1 {[%emt 0:10:53]} (17. Bxd7+ $1 $16 Qxd7 18. Na2) 17... Bxb5 $14 {[%emt 0:03:08]} 18. Nxd5 {[%emt 0:07:13]} Bd3 $1 {[%emt 0:03:06]} 19. Rxd3 {[%emt 0:01:13]} Nxd3 {[%emt 0:00:10]} 20. Nc7+ {[%emt 0:00:36] Excellent horsemanship.} (20. Qxd3 Bd6 $15) 20... Ke7 {[%emt 0:13:17] White must now prevent ...Rc8.} 21. Nxa8 {[%emt 0:00:09]} a5 {[%emt 0:00:16]} (21... Qd7 $14) 22. Rd1 $16 {[%emt 0:01:43]} Qxa8 {[%emt 0:00:35]} 23. Qxd3 {[%emt 0:01:42]} (23. Qc7+ $1 $16 Kf6 24. Rxd3) 23... Rd8 $14 {[%emt 0:01:03]} 24. Nd4 {[%emt 0:00:40] Hoping for Nf5+.} g6 {[%emt 0:00:07] Wards off Nf5+} 25. h4 {[%emt 0:03:52][%cal Oh4h5]} h5 {[%emt 0:02:08]} 26. Qb5 {[%emt 0:03:09]} (26. g4 $1 $16 {[%cal Rg4h5] gxh5 would be deadly.} Qc8 27. Qe4+ Kf8 28. gxh5 gxh5 29. Qf3) 26... Kf8 $11 {[%emt 0:02:04]} 27. Qg5 {[%emt 0:08:12][%cal Od4e6] Ne6+! is the strong threat.} Kg8 {[%emt 0:03:11]} 28. f4 {[%emt 0:00:52]} Re8 {[%emt 0:02:37]} 29. Nf5 {[%emt 0:01:37]} (29. Ne6 $11 Qc8 30. f5) 29... Bf8 $17 {[%emt 0:00:50]} 30. Ng3 {[%emt 0:01:54] [#]} Be7 $1 {[%emt 0:01:55]} ({Don't play} 30... Rxe3 31. Nxh5 Be7 32. Nf6+ Kg7 33. Nh5+ Kh7 34. Nf6+ Kg7 35. Nh5+ Kh7 36. Nf6+ Kg7 $11) 31. Qh6 {[%emt 0:00:38][%mdl 8192]} (31. Qb5 $17) 31... Qa7 $19 {[%emt 0:01:56]} ({And not} 31... Bxh4 32. Rd6 $11) 32. Rd3 {[%emt 0:01:13] [#]} Bf8 $1 {[%emt 0:00:33]} ({Worse is} 32... Bxh4 33. f5 Qa6 34. Rd5 $17) 33. Qg5 {[%emt 0:00:04][%cal Of4f5]} Rxe3 {[%emt 0:00:16] Weighted Error Value: White=0.34/Black=0.13 (very precise)} 0-1

[Event "3rd Sharjah Challengers 2023"]
[Site "Sharjah"]
[Date "2023.05.17"]
[Round "1.5"]
[White "Hany Kamal, Mohamed"]
[Black "Rios, Cristhian Camilo"]
[Result "1/2-1/2"]
[ECO "A16"]
[WhiteElo "2227"]
[BlackElo "2469"]
[Annotator "TA"]
[PlyCount "75"]
[EventDate "2023.05.16"]
[EventType "swiss"]
[EventCountry "UAE"]
[SourceTitle "playchess.com"]
[Source "ChessBase"]
[SourceQuality "1"]
[TimeControl "5400+30"]

{[%evp 9,75,48,39,53,48,39,41,43,52,24,24,27,27,17,18,24,24,20,24,15,17,18,35,30,41,44,46,55,46,56,54,35,58,42,45,42,45,43,52,43,68,63,59,70,69,33,33,33,33,33,33,33,58,58,87,87,95,95,87,100,103,97,91,0,93,0,96,0]} 1. Nf3 {[%emt 1:31:00]} Nf6 {[%emt 1:31:00]} 2. c4 {[%emt 0:00:30]} g6 {[%emt 0:00:30]} 3. Nc3 {[%emt 0:00:30]} Bg7 {[%emt 0:00:30]} 4. e4 {[%emt 0:00:30]} e5 {[%emt 0:00:30]} 5. Nxe5 {[%emt 0:00:30]} O-O {[%emt 0:00:30][%cal Of6e4]} 6. Nf3 {[%emt 0:00:30] A16: English Opening: 1...Nf6 with ...d5.} Re8 {[%emt 0:00:30]} 7. d3 {[%emt 0:00:30]} d5 {[%emt 0:00:30]} 8. cxd5 {[%emt 0:00:30] White is slightly better.} Nxd5 {[%emt 0:00:30]} 9. Nxd5 {[%emt 0:00:30]} Qxd5 {[%emt 0:00:30]} 10. Be2 {[%emt 0:00:30]} Qd6 {[%emt 0:00:30]} 11. h3 {[%emt 0:00:30]} c5 {[%emt 0:00:30]} 12. O-O {[%emt 0:00:30]} Nc6 {[%emt 0:00:30] [#]} 13. Qc2 $146 {[%emt 0:00:30]} ({Predecessor:} 13. a3 b6 14. Qc2 Nd4 15. Nxd4 Bxd4 16. Be3 Bxe3 17. fxe3 Bxh3 18. Rf4 Be6 19. Qc3 Qd8 20. Rf6 Rc8 21. Raf1 Rc7 22. Qe1 Rd7 23. Qc3 a5 24. b3 Rc7 {½-½ Atanasov,A (2361)-Mikhalevski,V (2519) Toronto Excelsior GM 03 2023 (5)}) 13... b6 {[%emt 0:00:30]} 14. Bd2 {[%emt 0:00:30]} a5 {[%emt 0:00:30]} 15. Bc3 {[%emt 0:00:30]} Nd4 {[%emt 0:00:30]} 16. Nxd4 {[%emt 0:00:30]} Bxd4 {[%emt 0:00:30]} 17. Kh1 {[%emt 0:00:30]} Ba6 {[%emt 0:00:30]} 18. f4 {[%emt 0:00:30][%cal Bf2f4,Bf4f5][%mdl 32]} Rad8 {[%emt 0:00:30]} 19. Rad1 {[%emt 0:00:30]} Qe7 {[%emt 0:00:30]} 20. f5 {[%emt 0:00:30]} Rd6 {[%emt 0:00:30]} 21. Qb3 {[%emt 0:00:30]} Qc7 {[%emt 0:00:30][%cal Oe8e4]} 22. Bxd4 {[%emt 0:00:30]} Rxd4 {[%emt 0:00:30]} 23. fxg6 {[%emt 0:00:30]} hxg6 {[%emt 0:00:30]} 24. Rf6 {[%emt 0:00:30][%csl LRb6,LRg6]} c4 {[%emt 0:00:30]} 25. Qxb6 {[%emt 0:00:30]} Qxb6 {[%emt 0:00:30]} 26. Rxb6 {[%emt 0:00:30]} cxd3 {[%emt 0:00:30]} 27. Bg4 {[%emt 0:00:30]} (27. Bf3 $5 {[%cal Rb6a6]} Re6 28. Rxe6 fxe6 29. Kg1 $14) 27... Bc8 {[%emt 0:00:30] [#] ...Bxg4 is the strong threat.} 28. Rb8 {[%emt 0:00:30]} Bd7 {[%emt 0:00:30]} 29. Rxe8+ {[%emt 0:00:30]} Bxe8 $14 {[%emt 0:00:30][%mdl 4096] Endgame KRB-KRB} 30. Kg1 {[%emt 0:00:30]} Bb5 {[%emt 0:00:30][%cal Od4a4]} 31. Bf3 $1 {[%emt 0:00:30]} Kg7 {[%emt 0:00:30]} 32. Kf2 {[%emt 0:00:30]} Ra4 {[%emt 0:00:30]} 33. a3 {[%emt 0:00:30] Threatens to win with Rc1.} Rc4 {[%emt 0:00:30] Prevents Rc1} 34. Ke3 {[%emt 0:00:30]} (34. Rxd3 $2 {is the wrong capture.} Rc2+ 35. Ke3 Bxd3 36. Kxd3 Rxb2 $19) 34... Rc2 {[%emt 0:00:30]} 35. Rd2 {[%emt 0:00:30] Rxc2 would be deadly.} Rc1 {[%emt 0:00:30]} 36. Rd1 {[%emt 0:00:30]} Rc2 {[%emt 0:00:30]} 37. Rd2 {[%emt 0:00:30]} Rc1 $1 {[%emt 0:00:30]} 38. Rd1 {[%emt 0:00:30] Weighted Error Value: White=0.09 (flawless) /Black=0.05 (flawless)} (38. Bd1 $16) 1/2-1/2

[Event "3rd Sharjah Challengers 2023"]
[Site "Sharjah"]
[Date "2023.05.17"]
[Round "1.6"]
[White "Ohanyan, Emin"]
[Black "Bogdanov, Artyom"]
[Result "1/2-1/2"]
[ECO "E11"]
[WhiteElo "2444"]
[BlackElo "2221"]
[Annotator "TA"]
[PlyCount "77"]
[EventDate "2023.05.16"]
[EventType "swiss"]
[EventCountry "UAE"]
[SourceTitle "playchess.com"]
[Source "ChessBase"]
[SourceQuality "1"]
[TimeControl "5400+30"]

{[%evp 17,77,18,21,8,48,47,43,39,57,39,41,33,41,21,50,4,13,0,27,20,20,0,4,-13,-13,-13,-8,-24,-12,-9,-9,-13,-13,-15,-12,-20,-19,-26,-28,-24,-26,-12,-12,-44,-18,-33,-35,-46,-46,-46,-59,-54,-47,-50,-48,-46,-61,-66,-41,-52,-31,-93]} 1. d4 {[%emt 0:00:04]} Nf6 {[%emt 0:00:09]} 2. c4 {[%emt 0:00:03]} e6 {[%emt 0:00:05]} 3. Nf3 {[%emt 0:00:10]} Bb4+ {[%emt 0:00:08]} 4. Nbd2 {[%emt 0:00:08]} b6 {[%emt 0:02:08]} 5. a3 {[%emt 0:01:49]} Bxd2+ {[%emt 0:00:38]} 6. Bxd2 {[%emt 0:00:30]} Bb7 {[%emt 0:01:10]} 7. e3 {[%emt 0:01:46]} d6 {[%emt 0:10:22]} 8. Bd3 {[%emt 0:05:14]} Nbd7 {[%emt 0:04:26]} 9. O-O {[%emt 0:15:13]} O-O {[%emt 0:13:24]} 10. b4 {[%emt 0:05:28] E11: Bogo-Indian.} Ne4 {[%emt 0:09:50]} (10... e5 $5 {[%cal Re5e4]} 11. Bc2 Ne4 $11) 11. Be1 {[%emt 0:17:33]} f5 {[%emt 0:06:20]} 12. Nd2 {[%emt 0:02:12] [#] White is slightly better.} Qe7 $146 {[%emt 0:12:32]} ({Predecessor:} 12... Qg5 13. f4 Qg6 14. Nxe4 Bxe4 15. Bxe4 fxe4 16. Bh4 Rf7 17. Rc1 Raf8 18. Qe2 a6 {½-½ Straka,J (2130)-Mueller,A (2130) W-ch WS/M/307 email 2011}) 13. f3 {[%emt 0:02:07]} Nxd2 {[%emt 0:00:50]} 14. Qxd2 {[%emt 0:01:02]} e5 {[%emt 0:01:53]} 15. Bc2 {[%emt 0:00:58]} Kh8 {[%emt 0:07:30]} 16. Qf2 {[%emt 0:03:18]} (16. Bg3 $14) 16... e4 $11 {[%emt 0:12:06]} 17. f4 {[%emt 0:04:06]} d5 {[%emt 0:01:07]} 18. Bb3 {[%emt 0:03:30]} Qf7 {[%emt 0:01:19]} 19. Qa2 {[%emt 0:10:46]} Nf6 {[%emt 0:00:33]} 20. Bd2 {[%emt 0:05:52]} dxc4 {[%emt 0:00:33]} 21. Bxc4 {[%emt 0:00:16]} Bd5 {[%emt 0:00:05]} 22. Rfc1 {[%emt 0:00:34][%cal Bf1c1,Bc1c4,Bc4a4][%mdl 32]} Rac8 {[%emt 0:00:42]} 23. a4 {[%emt 0:01:28]} Bxc4 {[%emt 0:01:14]} 24. Qxc4 {[%emt 0:00:50]} Qxc4 {[%emt 0:02:28]} 25. Rxc4 {[%emt 0:00:01]} Nd5 {[%emt 0:00:12]} 26. a5 {[%emt 0:04:04]} Kg8 {[%emt 0:00:34]} 27. b5 {[%emt 0:01:27]} Kf7 {[%emt 0:00:57]} 28. Kf2 {[%emt 0:00:17]} Ke6 {[%emt 0:00:59]} 29. h3 {[%emt 0:00:07]} Kd7 {[%emt 0:01:50]} 30. Rca4 {[%emt 0:04:40]} Rce8 {[%emt 0:00:48][%cal Og7g5]} (30... h6 $5 {[%cal Rg7g5]}) 31. Ke2 {[%emt 0:01:27]} Rf6 {[%emt 0:00:58] Black is slightly better.} 32. axb6 {[%emt 0:00:37]} axb6 {[%emt 0:00:05]} 33. Ra8 {[%emt 0:00:15]} Rff8 {[%emt 0:01:13]} 34. Rxe8 {[%emt 0:00:12]} Rxe8 {[%emt 0:00:34]} 35. g4 {[%emt 0:00:10]} Rf8 {[%emt 0:00:23]} 36. Rg1 {[%emt 0:05:40]} g6 {[%emt 0:01:30]} 37. Ra1 {[%emt 0:00:12]} Rg8 {[%emt 0:00:55]} (37... h6 $5 {[%cal Rg6g5]}) 38. Kf2 {[%emt 0:00:54]} h5 {[%emt 0:01:46]} 39. Rg1 {[%emt 0:03:48] Weighted Error Value: White=0.09 (flawless) /Black=0.07 (flawless)} ({Better is} 39. g5 $1 $15) 1/2-1/2